lending/lending_fUSD_20240504
["ID","MTS","AMOUNT","RATE_DAILY","PERIOD"]
[325408840,1714854657251,-501.94281729,0.00041095,30]
[325408841,1714854657262,-500.0,0.00041095,30]
[325408842,1714854657271,-500.0,0.00041095,30]
[325408843,1714854657281,-500.0,0.00041095,30]
[325408844,1714854657291,-500.0,0.00041095,30]
[325408845,1714854657301,-500.0,0.00041095,30]
[325408846,1714854657310,-965.03,0.00041095,30]
[325408847,1714854657320,-500.0,0.00041095,30]
[325408848,1714854657330,-699.29,0.00041095,30]
[325408849,1714854657340,-554.5248266,0.00041095,30]
[325408850,1714854657349,-500.0,0.00041095,30]
[325408851,1714854657359,-1071.54,0.00041095,30]
[325408852,1714854657369,-500.0,0.00041095,30]
[325408853,1714854657378,-501.68044907,0.00041095,30]
[325408854,1714854657388,-500.0,0.00041095,30]
[325408855,1714854657398,-500.0,0.00041095,30]
[325408856,1714854657408,-500.0,0.00041095,30]
[325408857,1714854657417,-508.31419628,0.00041095,30]
[325408858,1714854657430,-939.13,0.00041095,30]
[325408859,1714854657439,-500.0,0.00041095,30]
[325408860,1714854657448,-502.55704042,0.00041095,30]
[325408861,1714854657458,-500.0,0.00041095,30]
[325408862,1714854657468,-500.0,0.00041095,30]
[325408863,1714854657478,-500.0,0.00041095,30]
[325408864,1714854657488,-591.71,0.00041095,30]
[325408865,1714854657497,-500.0,0.00041095,30]
[325408866,1714854657508,-500.0,0.00041095,30]
[325408867,1714854657518,-500.0,0.00041095,30]
[325408868,1714854657528,-500.0,0.00041095,30]
[325408869,1714854657538,-500.0,0.00041095,30]
[325408870,1714854657548,-508.75766944,0.00041095,30]
[325408871,1714854657557,-1369.23,0.00041095,30]
[325408872,1714854657567,-500.0,0.00041095,30]
[325408873,1714854657576,-501.77887562,0.00041095,30]
[325408874,1714854657586,-500.0,0.00041095,30]
[325408875,1714854657595,-500.0,0.00041095,30]
[325408876,1714854657605,-500.0,0.00041095,30]
[325408877,1714854657615,-500.0,0.00041095,30]
[325408878,1714854657624,-836.48,0.00041095,30]
[325408879,1714854657633,-502.58327612,0.00041095,30]
[325408880,1714854657643,-500.0,0.00041095,30]
[325408881,1714854657653,-507.30459902,0.00041095,30]
[325408882,1714854657662,-500.0,0.00041095,30]
[325408883,1714854657671,-500.0,0.00041095,30]
[325408884,1714854657681,-500.0,0.00041095,30]
[325408885,1714854657691,-1340.42,0.00041095,30]
[325408886,1714854657700,-500.0,0.00041095,30]
[325408887,1714854657709,-501.60404376,0.00041095,30]
[325408888,1714854657719,-1259.68,0.00041095,30]
[325408889,1714854657728,-500.0,0.00041095,30]
[325408890,1714854657737,-500.0,0.00041095,30]
[325408891,1714854657747,-500.0,0.00041095,30]
[325408892,1714854657757,-500.0,0.00041095,30]
[325408893,1714854657766,-500.68629647,0.00041095,30]
[325408894,1714854657776,-500.0,0.00041095,30]
[325408895,1714854657786,-500.0,0.00041095,30]
[325408896,1714854657795,-1084.76,0.00041095,30]
[325408897,1714854657805,-500.0,0.00041095,30]
[325408898,1714854657814,-673.03,0.00041095,30]
[325408899,1714854657824,-788.84,0.00041095,30]
[325408900,1714854657833,-500.0,0.00041095,30]
[325408901,1714854657843,-500.0,0.00041095,30]
[325408902,1714854657853,-500.0,0.00041095,30]
[325408903,1714854657862,-500.0,0.00041095,30]
[325408904,1714854657872,-1225.41,0.00041095,30]
[325408905,1714854657881,-500.0,0.00041095,30]
[325408906,1714854657892,-922.91,0.00041095,30]
[325408907,1714854657901,-499.55686284,0.00041095,30]
[325408908,1714854657911,-1128.66,0.00041095,30]
[325408909,1714854657920,-1000.0,0.00041095,30]
[325408910,1714854657930,-500.0,0.00041095,30]
[325408911,1714854657939,-201.00272496,0.00041095,30]
[325408912,1714854657948,-500.0,0.00041095,30]
[325408913,1714854657958,-1291.58,0.00041095,30]
[325408914,1714854657968,-500.0,0.00041095,30]
[325408915,1714854657977,-1042.42,0.00041095,30]
[325408916,1714854657988,-500.0,0.00041095,30]
[325408917,1714854657997,-958.3,0.00041095,30]
[325408918,1714854658006,-547.6,0.00041095,30]
[325408919,1714854658016,-500.0,0.00041095,30]
[325408920,1714854658026,-1580.78,0.00041095,30]
[325408921,1714854658035,-500.0,0.00041095,30]
[325408922,1714854658045,-566.24,0.00041095,30]
[325408923,1714854658054,-600.28191163,0.00041095,30]
[325408924,1714854658064,-500.0,0.00041095,30]
[325408925,1714854658074,-1085.98,0.00041095,30]
[325408926,1714854658084,-500.0,0.00041095,30]
[325408927,1714854658093,-500.0,0.00041095,30]
[325408928,1714854658104,-500.0,0.00041095,30]
[325408929,1714854658114,-500.0,0.00041095,30]
[325408930,1714854658125,-1265.69,0.00041095,30]
[325408931,1714854658136,-500.0,0.00041095,30]
[325408932,1714854658145,-500.0,0.00041095,30]
[325408933,1714854658155,-500.0,0.00041095,30]
[325408934,1714854658165,-500.0,0.00041095,30]
[325408935,1714854658176,-500.0,0.00041095,30]
[325408936,1714854658186,-963.3,0.00041095,30]
[325408937,1714854658196,-500.0,0.00041095,30]
[325408938,1714854658206,-1015.6,0.00041095,30]
[325408939,1714854658216,-1141.04,0.00041095,30]
[325408940,1714854658226,-628.01,0.00041095,30]
[325408941,1714854658236,-500.0,0.00041095,30]
[325408942,1714854658246,-502.32466685,0.00041095,30]
[325408943,1714854658256,-500.0,0.00041095,30]
[325408944,1714854658266,-728.79,0.00041095,30]
[325408945,1714854658276,-500.0,0.00041095,30]
[325408946,1714854658285,-500.0,0.00041095,30]
[325408947,1714854658295,-500.0,0.00041095,30]
[325408948,1714854658305,-1082.99,0.00041095,30]
[325408949,1714854658315,-500.0,0.00041095,30]
[325408950,1714854658325,-500.0,0.00041095,30]
[325408951,1714854658335,-500.0,0.00041095,30]
[325408952,1714854658346,-500.0,0.00041095,2]
[325408953,1714854658356,-500.0,0.00041095,30]
[325408954,1714854658366,-500.0,0.00041095,30]
[325408955,1714854658376,-890.44,0.00041095,30]
[325408956,1714854658386,-500.0,0.00041095,2]
[325408957,1714854658396,-443.17272048,0.00041095,2]
[325408958,1714854658406,-235.0115708,0.00041095,30]
[325408959,1714854658416,-500.57410173,0.00041095,30]
[325408960,1714854658428,-648.36,0.00041095,30]
[325408961,1714854658439,-1043.24,0.00041095,30]
[325408962,1714854658449,-1500.0,0.00041095,30]
[325408963,1714854658459,-500.0,0.00041095,30]
[325408964,1714854658469,-511.00625628,0.00041095,30]
[325408965,1714854658479,-500.0,0.00041095,30]
[325408966,1714854658488,-876.68,0.00041095,30]
[325408967,1714854658497,-500.0,0.00041095,30]
[325408968,1714854658508,-151.0,0.00041095,14]
[325408969,1714854658519,-200.329008,0.00041095,14]
[325408970,1714854658529,-500.0,0.00041095,30]
[325408971,1714854658538,-694.38,0.00041095,30]
[325408972,1714854658548,-500.95408276,0.00041095,30]
[325408973,1714854658558,-1121.6,0.00041095,30]
[325408974,1714854658568,-500.0,0.00041095,30]
[325408975,1714854658578,-1231.96,0.00041095,30]
[325408976,1714854658588,-500.0,0.00041095,30]
[325408977,1714854658599,-1340.78,0.00041095,30]
[325408978,1714854658609,-500.0,0.00041095,30]
[325408979,1714854658619,-500.0,0.00041095,30]
[325408980,1714854658629,-616.60745161,0.00041095,30]
[325408981,1714854658639,-500.0,0.00041095,30]
[325408982,1714854658649,-500.0,0.00041095,30]
[325408983,1714854658658,-1174.31,0.00041095,30]
[325408984,1714854658668,-1353.16,0.00041095,30]
[325408985,1714854658678,-501.49134149,0.00041095,30]
[325408986,1714854658688,-593.95,0.00041095,30]
[325408987,1714854658699,-503.31305663,0.00041095,30]
[325408988,1714854658709,-500.0,0.00041095,30]
[325408989,1714854658718,-500.0,0.00041095,30]
[325408990,1714854658728,-695.28,0.00041095,30]
[325408991,1714854658739,-500.0,0.00041095,2]
[325408992,1714854658749,-500.0,0.00041095,30]
[325408993,1714854658758,-500.0,0.00041095,30]
[325408994,1714854658768,-500.0,0.00041095,30]
[325408995,1714854658778,-593.07,0.00041095,30]
[325408996,1714854658788,-500.0,0.00041095,30]
[325408997,1714854658798,-1221.16,0.00041095,30]
[325408998,1714854658808,-500.0,0.00041095,30]
[325408999,1714854658818,-632.26,0.00041095,30]
[325409000,1714854658829,-1137.7,0.00041095,30]
[325409001,1714854658840,-500.0,0.00041095,30]
[325409002,1714854659154,-500.92950418,0.00041095,30]
[325409003,1714854659181,-500.0,0.00041095,30]
[325409004,1714854659191,-500.0,0.00041095,30]
[325409005,1714854659200,-1227.65,0.00041095,30]
[325409006,1714854659210,-500.0,0.00041095,30]
[325409007,1714854659219,-1326.27,0.00041095,30]
[325409008,1714854659230,-1136.54,0.00041095,30]
[325409009,1714854659240,-500.0,0.00041095,30]
[325409010,1714854659250,-500.0,0.00041095,30]
[325409011,1714854659259,-500.0,0.00041095,30]
[325409012,1714854659269,-518.34667753,0.00041095,30]
[325409013,1714854659278,-500.0,0.00041095,30]
[325409014,1714854659287,-500.0,0.00041095,30]
[325409015,1714854659297,-500.0,0.00041095,30]
[325409016,1714854659306,-510.77074862,0.00041095,30]
[325409017,1714854659316,-500.0,0.00041095,30]
[325409018,1714854659326,-500.0,0.00041095,30]
[325409019,1714854659335,-500.0,0.00041095,30]
[325409020,1714854659345,-500.0,0.00041095,30]
[325409021,1714854659357,-500.0,0.00041095,30]
[325409022,1714854659367,-764.25,0.00041095,30]
[325409023,1714854659376,-792.56,0.00041095,30]
[325409024,1714854659386,-504.17131857,0.00041095,30]
[325409025,1714854659395,-500.0,0.00041095,30]
[325409026,1714854659405,-500.0,0.00041095,30]
[325409027,1714854659415,-500.0,0.00041095,30]
[325409028,1714854659426,-682.38,0.00041095,30]
[325409029,1714854659440,-500.0,0.00041095,30]
[325409030,1714854659450,-500.0,0.00041095,30]
[325409031,1714854659460,-500.0,0.00041095,30]
[325409032,1714854659471,-500.0,0.00041095,30]
[325409033,1714854659482,-777.0,0.00041095,30]
[325409034,1714854659492,-500.0,0.00041095,30]
[325409035,1714854659502,-500.0,0.00041095,30]
[325409036,1714854659512,-500.0,0.00041095,30]
[325409037,1714854659523,-500.0,0.00041095,30]
[325409038,1714854659532,-500.0,0.00041095,30]
[325409039,1714854659541,-500.0,0.00041095,30]
[325409040,1714854659551,-500.0,0.00041095,30]
[325409041,1714854659560,-821.87,0.00041095,30]
[325409042,1714854659570,-676.71,0.00041095,30]
[325409043,1714854659579,-1235.21,0.00041095,30]
[325409044,1714854659589,-500.0,0.00041095,30]
[325409045,1714854659600,-641.36473948,0.00041095,30]
[325409046,1714854659616,-889.54,0.00041095,30]
[325409047,1714854659626,-500.0,0.00041095,30]
[325409048,1714854659636,-254.4861474,0.00041095,30]
[325409049,1714854659646,-500.0,0.00041095,30]
[325409050,1714854659657,-500.0,0.00041095,30]
[325409051,1714854659666,-941.29,0.00041095,30]
[325409052,1714854659676,-500.0,0.00041095,30]
[325409053,1714854659687,-500.0,0.00041095,30]
[325409054,1714854659697,-500.0,0.00041095,30]
[325409055,1714854659707,-579.68,0.00041095,30]
[325409056,1714854659716,-500.0,0.00041095,30]
[325409057,1714854659726,-500.0,0.00041095,30]
[325409058,1714854659735,-583.83,0.00041095,30]
[325409059,1714854659745,-500.0,0.00041095,30]
[325409060,1714854659754,-500.0,0.00041095,30]
[325409061,1714854659764,-500.0,0.00041095,30]
[325409062,1714854659773,-858.86,0.00041095,30]
[325409063,1714854659784,-904.22,0.00041095,30]
[325409064,1714854659793,-500.0,0.00041095,30]
[325409065,1714854659803,-500.0,0.00041095,30]
[325409066,1714854659813,-500.0,0.00041095,30]
[325409067,1714854659823,-500.0,0.00041095,30]
[325409068,1714854659832,-506.67882545,0.00041095,30]
[325409069,1714854659842,-840.76,0.00041095,30]
[325409070,1714854659852,-1482.46,0.00041095,30]
[325409071,1714854659862,-1353.63,0.00041095,30]
[325409072,1714854659872,-500.0,0.00041095,30]
[325409073,1714854659881,-500.0,0.00041095,30]
[325409074,1714854659891,-500.0,0.00041095,30]
[325409075,1714854659901,-500.0,0.00041095,30]
[325409076,1714854659910,-500.0,0.00041095,30]
[325409077,1714854659920,-500.0,0.00041095,30]
[325409078,1714854659929,-548.94,0.00041095,30]
[325409079,1714854659938,-577.85429036,0.00041095,30]
[325409080,1714854659948,-500.0,0.00041095,30]
[325409081,1714854659957,-500.0,0.00041095,30]
[325409082,1714854659967,-908.18,0.00041095,30]
[325409083,1714854659976,-500.0,0.00041095,30]
[325409084,1714854659986,-500.0,0.00041095,30]
[325409085,1714854659995,-500.0,0.00041095,30]
[325409086,1714854660005,-1534.33,0.00041095,30]
[325409087,1714854660014,-500.0,0.00041095,2]
[325409088,1714854660024,-500.0,0.00041095,30]
[325409089,1714854660034,-500.0,0.00041095,30]
[325409090,1714854660043,-789.1,0.00041095,30]
[325409091,1714854660053,-852.9,0.00041095,30]
[325409092,1714854660063,-500.0,0.00041095,30]
[325409093,1714854660073,-700.73,0.00041095,30]
[325409094,1714854660084,-500.0,0.00041095,30]
[325409095,1714854660094,-500.0,0.00041095,30]
[325409096,1714854660104,-500.0,0.00041095,30]
[325409097,1714854660114,-500.0,0.00041095,30]
[325409098,1714854660124,-1330.27,0.00041095,30]
[325409099,1714854660133,-368.34906024,0.00041095,30]
[325409100,1714854660143,-500.0,0.00041095,30]
[325409101,1714854660153,-500.0,0.00041095,30]
[325409102,1714854660162,-500.0,0.00041095,30]
[325409103,1714854660172,-687.24,0.00041095,30]
[325409104,1714854660182,-500.0,0.00041095,30]
[325409105,1714854660192,-500.0,0.00041095,30]
[325409106,1714854660202,-500.0,0.00041095,30]
[325409107,1714854660213,-500.0,0.00041095,30]
[325409108,1714854660223,-501.47192338,0.00041095,30]
[325409109,1714854660234,-500.0,0.00041095,30]
[325409110,1714854660244,-500.0,0.00041095,30]
[325409111,1714854660255,-500.0,0.00041095,30]
[325409112,1714854660265,-500.0,0.00041095,30]
[325409113,1714854660276,-500.0,0.00041095,30]
[325409114,1714854660286,-500.0,0.00041095,30]
[325409115,1714854660296,-500.0,0.00041095,30]
[325409116,1714854660305,-503.90477558,0.00041095,30]
[325409117,1714854660317,-500.0,0.00041095,30]
[325409118,1714854660328,-522.06,0.00041095,30]
[325409119,1714854660338,-541.41,0.00041095,30]
[325409120,1714854660348,-151.0,0.00041095,7]
[325409121,1714854660359,-151.0,0.00041095,7]
[325409122,1714854660368,-500.0,0.00041095,30]
[325409123,1714854660378,-500.0,0.00041095,30]
[325409124,1714854660388,-500.0,0.00041095,30]
[325409125,1714854660398,-500.0,0.00041095,30]
[325409126,1714854660408,-500.0,0.00041095,30]
[325409127,1714854660418,-500.0,0.00041095,30]
[325409128,1714854660432,-502.73052021,0.00041095,30]
[325409129,1714854660442,-500.0,0.00041095,30]
[325409130,1714854660451,-500.0,0.00041095,30]
[325409131,1714854660461,-500.0,0.00041095,30]
[325409132,1714854660472,-500.0,0.00041095,30]
[325409133,1714854660481,-500.0,0.00041095,30]
[325409134,1714854660491,-500.0,0.00041095,30]
[325409135,1714854660501,-1212.95,0.00041095,30]
[325409136,1714854660511,-500.77914073,0.00041095,30]
[325409137,1714854660522,-1069.33,0.00041095,30]
[325409138,1714854660532,-500.0,0.00041095,30]
[325409139,1714854660542,-500.0,0.00041095,30]
[325409140,1714854660552,-1210.18,0.00041095,30]
[325409141,1714854660562,-779.81,0.00041095,30]
[325409142,1714854660572,-500.0,0.00041095,30]
[325409143,1714854660582,-500.0,0.00041095,30]
[325409144,1714854660593,-500.0,0.00041095,30]
[325409145,1714854660605,-500.0,0.00041095,30]
[325409146,1714854660615,-1454.48,0.00041095,30]
[325409147,1714854660625,-500.0,0.00041095,30]
[325409148,1714854660635,-502.18108283,0.00041095,30]
[325409149,1714854660645,-500.0,0.00041095,30]
[325409150,1714854660655,-500.0,0.00041095,30]
[325409151,1714854660665,-155.0,0.00041095,30]
[325409152,1714854660675,-584.6,0.00041095,30]
[325409153,1714854660685,-1156.98,0.00041095,30]
[325409154,1714854660695,-500.0,0.00041095,30]
[325409155,1714854660705,-502.0061246,0.00041095,30]
[325409156,1714854660715,-853.87,0.00041095,30]
[325409157,1714854660726,-1309.13,0.00041095,30]
[325409158,1714854660736,-500.0,0.00041095,30]
[325409159,1714854660747,-1362.88,0.00041095,30]
[325409160,1714854660758,-500.0,0.00041095,30]
[325409161,1714854660768,-1197.66,0.00041095,30]
[325409162,1714854660778,-1194.56,0.00041095,30]
[325409163,1714854660788,-500.0,0.00041095,30]
[325409164,1714854660798,-500.0,0.00041095,30]
[325409165,1714854660807,-500.0,0.00041095,30]
[325409166,1714854660817,-500.0,0.00041095,30]
[325409167,1714854660828,-500.0,0.00041095,30]
[325409168,1714854660838,-500.0,0.00041095,30]
[325409169,1714854660847,-500.0,0.00041095,30]
[325409170,1714854660862,-1129.04,0.00041095,30]
[325409171,1714854660872,-272.98700068,0.00041095,30]
[325409172,1714854660881,-500.0,0.00041095,30]
[325409173,1714854660892,-500.0,0.00041095,30]
[325409174,1714854660902,-500.0,0.00041095,30]
[325409175,1714854660911,-1214.17,0.00041095,30]
[325409176,1714854660921,-1435.22,0.00041095,30]
[325409177,1714854660931,-500.0,0.00041095,30]
[325409178,1714854660941,-837.24,0.00041095,30]
[325409179,1714854660951,-500.0,0.00041095,30]
[325409180,1714854660960,-2602.46,0.00041095,30]
[325409181,1714854660970,-653.57,0.00041095,30]
[325409182,1714854660980,-1613.73,0.00041095,30]
[325409183,1714854660990,-503.88964613,0.00041095,30]
[325409184,1714854661000,-1227.04,0.00041095,30]
[325409185,1714854661009,-505.90946084,0.00041095,30]
[325409186,1714854661019,-884.21,0.00041095,30]
[325409187,1714854661028,-500.0,0.00041095,30]
[325409188,1714854661038,-500.0,0.00041095,30]
[325409189,1714854661048,-500.0,0.00041095,30]
[325409190,1714854661058,-1120.09,0.00041095,30]
[325409191,1714854661068,-917.53,0.00041095,30]
[325409192,1714854661079,-1324.54,0.00041095,30]
[325409193,1714854661091,-536.28,0.00041095,30]
[325409194,1714854661104,-500.0,0.00041095,30]
[325409195,1714854661115,-503.39744207,0.00041095,30]
[325409196,1714854661127,-500.0,0.00041095,30]
[325409197,1714854661137,-500.0,0.00041095,30]
[325409198,1714854661147,-597.00164607,0.00041095,30]
[325409199,1714854661158,-500.0,0.00041095,30]
[325409200,1714854661167,-500.0,0.00041095,30]
[325409201,1714854661178,-1737.11,0.00041095,7]
[325409202,1714854661188,-500.0,0.00041095,30]
[325409203,1714854661199,-1000.0,0.00041095,2]
[325409204,1714854661209,-431.00643566,0.00041095,30]
[325409205,1714854661219,-500.0,0.00041095,30]
[325409206,1714854661230,-500.0,0.00041095,30]
[325409207,1714854661240,-500.0,0.00041095,30]
[325409208,1714854661250,-1417.06,0.00041095,30]
[325409209,1714854661260,-645.28,0.00041095,30]
[325409210,1714854661270,-500.0,0.00041095,30]
[325409211,1714854661280,-829.59,0.00041095,30]
[325409212,1714854661290,-1121.68,0.00041095,30]
[325409213,1714854661300,-500.0,0.00041095,30]
[325409214,1714854661310,-713.37,0.00041095,30]
[325409215,1714854661319,-500.0,0.00041095,30]
[325409216,1714854661329,-1135.9,0.00041095,30]
[325409217,1714854661338,-514.71,0.00041095,30]
[325409218,1714854661348,-924.08,0.00041095,30]
[325409219,1714854661361,-1828.96,0.00041095,30]
[325409220,1714854661370,-500.0,0.00041095,30]
[325409221,1714854661379,-500.0,0.00041095,30]
[325409222,1714854661389,-1137.03,0.00041095,30]
[325409223,1714854661399,-2329.86,0.00041095,30]
[325409224,1714854661409,-151.0,0.00041095,14]
[325409225,1714854661418,-1101.83,0.00041095,30]
[325409226,1714854661429,-151.0,0.00041095,14]
[325409227,1714854661441,-500.0,0.00041095,30]
[325409228,1714854661451,-500.0,0.00041095,30]
[325409229,1714854661460,-500.0,0.00041095,30]
[325409230,1714854661470,-947.5,0.00041095,30]
[325409231,1714854661481,-1219.68,0.00041095,30]
[325409232,1714854661490,-1016.47,0.00041095,30]
[325409233,1714854661500,-500.0,0.00041095,30]
[325409234,1714854661510,-1282.77,0.00041095,30]
[325409235,1714854661520,-500.0,0.00041095,30]
[325409236,1714854661530,-500.0,0.00041095,30]
[325409237,1714854661540,-500.0,0.00041095,30]
[325409238,1714854661549,-500.0,0.00041095,30]
[325409239,1714854661645,-500.0,0.00041095,30]
[325409240,1714854661655,-658.9,0.00041095,30]
[325409241,1714854661667,-500.0,0.00041095,30]
[325409242,1714854661677,-500.0,0.00041095,7]
[325409243,1714854661686,-500.0,0.00041095,30]
[325409244,1714854661696,-506.52470972,0.00041095,30]
[325409245,1714854661707,-500.0,0.00041095,30]
[325409246,1714854661717,-500.0,0.00041095,30]
[325409247,1714854661726,-1235.13,0.00041095,30]
[325409248,1714854661737,-500.0,0.00041095,30]
[325409249,1714854661748,-1232.01,0.00041095,30]
[325409250,1714854661757,-1605.56,0.00041095,30]
[325409251,1714854661768,-151.0,0.00041095,14]
[325409252,1714854661778,-500.0,0.00041095,30]
[325409253,1714854661788,-151.0,0.00041095,14]
[325409254,1714854661798,-500.0,0.00041095,30]
[325409255,1714854661807,-500.0,0.00041095,30]
[325409256,1714854661816,-1370.3,0.00041095,30]
[325409257,1714854661825,-500.0,0.00041095,30]
[325409258,1714854661834,-500.0,0.00041095,30]
[325409259,1714854661843,-500.0,0.00041095,30]
[325409260,1714854661853,-500.0,0.00041095,30]
[325409261,1714854661862,-519.25633408,0.00041095,30]
[325409262,1714854661871,-500.0,0.00041095,30]
[325409263,1714854661880,-500.0,0.00041095,30]
[325409264,1714854661889,-500.0,0.00041095,30]
[325409265,1714854661899,-502.03919778,0.00041095,30]
[325409266,1714854661908,-171.247416,0.00041095,14]
[325409267,1714854661917,-500.0,0.00041095,30]
[325409268,1714854661926,-1021.34,0.00041095,30]
[325409269,1714854661936,-500.0,0.00041095,30]
[325409270,1714854661945,-655.55,0.00041095,30]
[325409271,1714854661955,-500.0,0.00041095,30]
[325409272,1714854661964,-500.0,0.00041095,30]
[325409273,1714854661973,-500.0,0.00041095,30]
[325409274,1714854661982,-637.66,0.00041095,30]
[325409275,1714854661991,-500.0,0.00041095,30]
[325409276,1714854661999,-500.0,0.00041095,30]
[325409277,1714854662008,-691.52,0.00041095,30]
[325409278,1714854662018,-500.0,0.00041095,30]
[325409279,1714854662027,-500.0,0.00041095,30]
[325409280,1714854662037,-1748.97,0.00041095,30]
[325409281,1714854662046,-500.0,0.00041095,30]
[325409282,1714854662055,-247.007737,0.00041095,14]
[325409283,1714854662064,-247.007737,0.00041095,14]
[325409284,1714854662074,-1700.2,0.00041095,30]
[325409285,1714854662083,-500.0,0.00041095,30]
[325409286,1714854662093,-1517.91,0.00041095,30]
[325409287,1714854662103,-500.0,0.00041095,30]
[325409288,1714854662112,-500.0,0.00041095,30]
[325409289,1714854662121,-500.0,0.00041095,30]
[325409290,1714854662131,-247.007737,0.00041095,14]
[325409291,1714854662141,-247.007737,0.00041095,14]
[325409292,1714854662150,-1000.0,0.00041095,2]
[325409293,1714854662159,-501.89043927,0.00041095,30]
[325409294,1714854662168,-508.03999675,0.00041095,30]
[325409295,1714854662177,-575.04835383,0.00041095,30]
[325409296,1714854662188,-994.84,0.00041095,30]
[325409297,1714854662197,-151.0,0.00041095,14]
[325409298,1714854662206,-151.0,0.00041095,14]
[325409299,1714854662215,-1106.67,0.00041095,30]
[325409300,1714854662224,-500.0,0.00041095,30]
[325409301,1714854662234,-912.83,0.00041095,30]
[325409302,1714854662243,-506.75325818,0.00041095,30]
[325409303,1714854662252,-500.0,0.00041095,30]
[325409304,1714854662261,-500.0,0.00041095,30]
[325409305,1714854662270,-500.0,0.00041095,30]
[325409306,1714854662279,-500.0,0.00041095,30]
[325409307,1714854662288,-500.0,0.00041095,30]
[325409308,1714854662298,-500.0,0.00041095,31]
[325409309,1714854662306,-500.0,0.00041095,32]
[325409310,1714854662315,-500.0,0.00041095,33]
[325409311,1714854662324,-500.0,0.00041095,34]
[325409312,1714854662334,-500.0,0.00041095,30]
[325409313,1714854662343,-500.0,0.00041095,35]
[325409314,1714854662354,-500.0,0.00041095,30]
[325409315,1714854662363,-500.0,0.00041095,36]
[325409316,1714854662372,-500.0,0.00041095,37]
[325409317,1714854662382,-200.96127995,0.00041095,2]
[325409318,1714854662391,-500.0,0.00041095,38]
[325409319,1714854662400,-1421.44,0.00041095,30]
[325409320,1714854662409,-500.0,0.00041095,30]
[325409321,1714854662418,-500.0,0.00041095,39]
[325409322,1714854662432,-500.0,0.00041095,40]
[325409323,1714854662442,-2000.0,0.00041095,28]
[325409324,1714854662451,-500.0,0.00041095,2]
[325409325,1714854662460,-518.12735098,0.00041095,41]
[325409326,1714854662472,-500.0,0.00041095,30]
[325409327,1714854662482,-500.0,0.00041095,30]
[325409328,1714854662491,-500.0,0.00041095,30]
[325409329,1714854662500,-501.49583933,0.00041095,30]
[325409330,1714854662510,-500.0,0.00041095,30]
[325409331,1714854662520,-719.21,0.00041095,30]
[325409332,1714854662529,-500.0,0.00041095,30]
[325409333,1714854662538,-500.0,0.00041095,30]
[325409334,1714854662547,-500.0,0.00041095,30]
[325409335,1714854662556,-500.0,0.00041095,30]
[325409336,1714854662566,-151.0,0.00041095,14]
[325409337,1714854662575,-500.0,0.00041095,30]
[325409338,1714854662584,-151.0,0.00041095,14]
[325409339,1714854662593,-635.21,0.00041095,30]